bitfinex/quotes_BTCUSD_20230403
["timestamp","ask_amount","ask_price","bid_price","bid_amount"]
[1680522137606,0.07208744,28279.0,28278.0,0.01461266]
[1680522137804,0.42706241,28279.0,28278.0,0.01461266]
[1680522137967,0.44606241,28279.0,28278.0,0.019681]
[1680522142377,0.44606241,28279.0,28278.0,0.002]
[1680522142611,0.44606241,28279.0,28278.0,0.169681]
[1680522142819,0.44624241,28279.0,28278.0,0.169681]
[1680522148584,0.44624241,28279.0,28278.0,0.16959283]
[1680522153299,1.26617836,28279.0,28278.0,0.15191183]
[1680522153495,1.26599836,28279.0,28278.0,0.15191183]
[1680522153712,1.22137412,28279.0,28278.0,0.14922263]
[1680522154619,1.52321812,28279.0,28278.0,0.14922263]
[1680522154847,1.78806087,28279.0,28278.0,0.14652842]
[1680522155100,3.18693566,28279.0,28278.0,0.14652842]
[1680522155314,3.45810106,28279.0,28278.0,0.14652842]
[1680522155542,3.47224506,28279.0,28278.0,0.14652842]
[1680522155762,3.47206506,28279.0,28278.0,0.14384645]
[1680522155983,3.45306506,28279.0,28278.0,0.14384645]
[1680522156236,3.93051739,28279.0,28278.0,0.14384645]
[1680522156451,4.31792008,28279.0,28278.0,0.14384645]
[1680522156671,4.31792008,28279.0,28278.0,0.14117668]
[1680522157115,4.29092008,28279.0,28278.0,0.14117668]
[1680522157335,4.31792008,28279.0,28278.0,0.14117668]
[1680522157552,4.29092008,28279.0,28278.0,0.14117668]
[1680522157816,4.10771739,28279.0,28278.0,0.13854845]
[1680522158672,4.10771739,28279.0,28278.0,0.13593217]
[1680522159172,4.28453739,28279.0,28278.0,0.13593217]
[1680522159611,4.49474008,28279.0,28278.0,0.13593217]
[1680522159803,4.28453739,28279.0,28278.0,0.13333971]
[1680522160505,4.28471739,28279.0,28278.0,0.13333971]
[1680522160711,4.28471739,28279.0,28278.0,0.13077092]
[1680522160829,4.49492008,28279.0,28278.0,0.13077092]
[1680522161702,4.62657049,28279.0,28278.0,0.1282138]
[1680522162809,0.5844,28277.0,28273.0,0.00541609]
[1680522163028,1.01437497,28274.0,28273.0,0.00523609]
[1680522163254,1.05475697,28274.0,28273.0,0.00523609]
[1680522163650,1.06325697,28274.0,28273.0,0.00523609]
[1680522164653,1.26532781,28274.0,28273.0,0.00271301]
[1680522164855,1.26532781,28274.0,28271.0,0.00271301]
[1680522165055,1.12833897,28272.0,28271.0,0.00271301]
[1680522165256,1.13683897,28272.0,28271.0,0.00271301]
[1680522165723,1.16191276,28272.0,28271.0,0.00020563]
[1680522166155,1.18891276,28272.0,28271.0,0.00020563]
[1680522166374,1.16191276,28272.0,28271.0,0.00020563]
[1680522166539,1.18891276,28272.0,28271.0,0.00020563]
[1680522166889,1.18891276,28272.0,28266.0,0.017688]
[1680522166890,0.413786,28271.0,28266.0,0.017688]
[1680522167120,0.46943397,28270.0,28266.0,0.017868]
[1680522167348,0.041125,28269.0,28266.0,0.017868]
[1680522167559,0.35497497,28268.0,28266.0,0.017868]
[1680522167778,0.35497497,28268.0,28266.0,0.00018]
[1680522167997,0.35497497,28268.0,28266.0,0.017869]
[1680522168221,0.039765,28267.0,28266.0,0.017869]
[1680522168447,0.39473997,28267.0,28266.0,0.017869]
[1680522168892,0.39473997,28267.0,28266.0,0.00018]
[1680522169145,0.40873997,28267.0,28266.0,0.017869]
[1680522169802,0.40873997,28267.0,28266.0,0.00018]
[1680522170021,0.40873997,28267.0,28266.0,0.017869]
[1680522170237,0.40873997,28267.0,28266.0,0.00018]
[1680522170462,0.40873997,28267.0,28266.0,0.017869]
[1680522170892,0.40873997,28267.0,28266.0,0.00018]
[1680522171351,0.39473997,28267.0,28266.0,0.00018]
[1680522171587,0.41473997,28267.0,28266.0,0.00018]
[1680522172056,0.41473997,28267.0,28266.0,0.017869]
[1680522172703,0.43755797,28267.0,28266.0,0.017869]
[1680522173511,0.43755797,28267.0,28266.0,0.147869]
[1680522174397,0.43773797,28267.0,28266.0,0.01348056]
[1680522174575,0.43755797,28267.0,28266.0,0.03116956]
[1680522175621,0.43755797,28267.0,28266.0,0.01348056]
[1680522177527,0.43773797,28267.0,28266.0,0.01348056]
[1680522177746,0.43755797,28267.0,28266.0,0.01348056]
[1680522178191,0.43755797,28267.0,28266.0,0.03116956]
[1680522178405,0.39779297,28267.0,28266.0,0.03116956]
[1680522178620,0.43820097,28267.0,28266.0,0.03116956]
[1680522180161,0.43793997,28267.0,28266.0,0.03116956]
[1680522181557,0.042818,28267.0,28266.0,0.03116956]
[1680522181923,0.042818,28267.0,28266.0,0.10626956]
[1680522182882,0.02,28267.0,28266.0,0.10626956]
[1680522184698,0.02,28267.0,28266.0,0.09126956]
[1680522191062,0.02,28267.0,28266.0,0.17509759]
[1680522191266,0.02,28267.0,28266.0,0.19349959]
[1680522191474,0.02,28267.0,28266.0,0.09162894]
[1680522191883,0.02,28267.0,28266.0,0.16602894]
[1680522192300,0.02,28267.0,28266.0,0.18453694]
[1680522192506,0.02,28267.0,28266.0,0.18394494]
[1680522192716,0.02,28267.0,28266.0,0.26777304]
[1680522193125,0.02,28267.0,28266.0,0.24985704]
[1680522193352,0.02,28267.0,28266.0,0.19295904]
[1680522194428,0.02,28267.0,28266.0,0.17475704]
[1680522194679,0.02,28267.0,28266.0,0.19350604]
[1680522194828,0.02,28267.0,28266.0,0.20273904]
[1680522196287,0.02,28267.0,28266.0,0.27713904]
[1680522196704,0.02,28267.0,28266.0,0.26713904]
[1680522197346,0.00018,28270.0,28266.0,0.26713904]
[1680522197548,0.771295,28271.0,28269.0,0.0745]
[1680522197760,0.771295,28271.0,28270.0,0.053059]
[1680522199278,0.771295,28271.0,28270.0,0.278059]
[1680522199505,0.771295,28271.0,28270.0,0.371585]
[1680522199506,0.771175,28271.0,28270.0,0.371585]
[1680522199754,0.772115,28271.0,28270.0,0.371645]
[1680522199986,0.772115,28271.0,28270.0,0.45440731]
[1680522200216,0.771115,28271.0,28270.0,0.45440731]
[1680522200428,0.772115,28271.0,28270.0,0.45440731]
[1680522200640,0.771115,28271.0,28270.0,0.45440731]
[1680522200858,0.771115,28271.0,28270.0,0.370645]
[1680522201076,0.771115,28271.0,28270.0,0.58113477]
[1680522201525,0.772115,28271.0,28270.0,0.78213477]
[1680522201736,0.79118266,28271.0,28270.0,0.78113477]
[1680522201947,0.79418266,28271.0,28270.0,0.78213477]
[1680522202166,0.79118266,28271.0,28270.0,0.78113477]
[1680522202399,0.79418266,28271.0,28270.0,0.78213477]
[1680522202833,0.774115,28271.0,28270.0,0.78213477]
[1680522203455,0.774115,28271.0,28270.0,0.78248678]
[1680522203713,0.774115,28271.0,28270.0,0.83530174]
[1680522204888,0.774115,28271.0,28270.0,0.62481197]
[1680522205103,0.7740615,28271.0,28270.0,0.47475197]
[1680522205310,0.7740615,28271.0,28270.0,0.47481197]
[1680522205311,0.7740015,28271.0,28270.0,0.47481197]
[1680522205729,0.79406418,28271.0,28270.0,0.47481197]
[1680522207101,0.79424418,28271.0,28270.0,0.47481197]
[1680522207312,0.79406418,28271.0,28270.0,0.47481197]
[1680522208915,0.79406418,28271.0,28270.0,0.42199701]
[1680522211976,0.79406418,28271.0,28270.0,0.42190276]
[1680522212182,0.79424418,28271.0,28270.0,0.42172276]
[1680522213691,0.79424418,28271.0,28270.0,0.34672276]
[1680522215652,0.79424418,28271.0,28270.0,0.32871676]
[1680522215887,0.79424418,28271.0,28270.0,0.21894376]
[1680522216867,0.79124418,28271.0,28270.0,0.21794376]
[1680522217088,0.79424418,28271.0,28270.0,0.23664076]
[1680522217302,0.79424418,28271.0,28270.0,0.21894376]
[1680522217519,0.79424418,28271.0,28270.0,0.23662976]
[1680522217764,0.79424418,28271.0,28270.0,0.21894376]
[1680522218192,0.79424418,28271.0,28270.0,0.23565676]
[1680522218415,0.79124418,28271.0,28270.0,0.21794376]
[1680522218561,0.79224418,28271.0,28270.0,0.21894376]
[1680522220844,0.79224418,28271.0,28270.0,0.21894376]
[1680522221709,0.79224418,28271.0,28270.0,0.23625976]
[1680522221837,0.79224418,28271.0,28270.0,0.21894376]
[1680522224229,0.79124418,28271.0,28270.0,0.21794376]
[1680522224444,0.79224418,28271.0,28270.0,0.21894376]
[1680522225078,0.79124418,28271.0,28270.0,0.21794376]
[1680522225353,0.79224418,28271.0,28270.0,0.21894376]
[1680522234667,0.79195052,28271.0,28270.0,0.21912376]
[1680522235698,0.79213052,28271.0,28270.0,0.21894376]
[1680522236526,0.79195052,28271.0,28270.0,0.21912376]
[1680522239565,0.83516852,28271.0,28270.0,0.21912376]
[1680522240008,0.79195052,28271.0,28270.0,0.21912376]
[1680522245888,0.79195052,28271.0,28270.0,0.66719073]
[1680522246559,0.79195052,28271.0,28270.0,0.75076518]
[1680522246782,0.79213052,28271.0,28270.0,1.12186518]
[1680522247556,0.79195052,28271.0,28270.0,1.12186518]
[1680522247995,0.79095052,28271.0,28270.0,1.12086518]
[1680522248208,0.79195052,28271.0,28270.0,1.25460228]
[1680522248422,0.79195052,28271.0,28270.0,1.12786518]
[1680522249281,0.79195052,28271.0,28270.0,1.25460228]
[1680522250865,0.79195052,28271.0,28270.0,1.55460228]
[1680522251321,0.79195052,28271.0,28270.0,1.51116518]
[1680522251770,0.77188784,28271.0,28270.0,1.69650518]
[1680522252184,0.77088784,28271.0,28270.0,1.83970518]
[1680522252439,0.77288784,28271.0,28270.0,1.85770518]
[1680522252666,0.77088784,28271.0,28270.0,1.83970518]
[1680522252888,0.77288784,28271.0,28270.0,1.85770518]
[1680522253107,0.77088784,28271.0,28270.0,1.83970518]
[1680522254190,0.77288784,28271.0,28270.0,1.85770518]
[1680522254399,0.77088784,28271.0,28270.0,1.83970518]
[1680522254661,0.77288784,28271.0,28270.0,1.85770518]
[1680522255126,0.77288784,28271.0,28270.0,1.55830518]
[1680522255342,0.77288784,28271.0,28270.0,1.56710929]
[1680522257926,0.77288784,28271.0,28270.0,1.71710929]
[1680522258096,0.76444508,28271.0,28270.0,1.71710929]
[1680522259700,0.76462508,28271.0,28270.0,1.71710929]
[1680522259915,0.76444508,28271.0,28270.0,1.71710929]
[1680522262529,0.76444508,28271.0,28270.0,1.56710929]
[1680522264644,0.76444508,28271.0,28270.0,1.77872633]
[1680522266852,0.76444508,28271.0,28270.0,1.49209427]
[1680522267072,0.76444508,28271.0,28270.0,1.28047723]
[1680522268206,0.76462508,28271.0,28270.0,1.28029723]
[1680522268427,0.76462508,28271.0,28270.0,1.40743223]
[1680522268658,0.76262508,28271.0,28270.0,1.38943223]
[1680522268871,0.76262508,28271.0,28270.0,1.37009223]
[1680522268872,0.75962508,28271.0,28270.0,1.37009223]
[1680522269730,0.77695064,28271.0,28270.0,1.37009223]
[1680522269958,0.77695064,28271.0,28270.0,1.74189223]
[1680522270175,0.77695064,28271.0,28270.0,1.37009223]
[1680522270383,0.77695064,28271.0,28270.0,1.20082429]
[1680522271272,0.77695064,28271.0,28270.0,1.37009223]
[1680522271479,0.77695064,28271.0,28270.0,1.20082429]
[1680522271689,0.77695064,28271.0,28270.0,1.37009223]
[1680522271908,0.77695064,28271.0,28270.0,1.20082429]
[1680522273235,0.77695064,28271.0,28270.0,1.37009223]
[1680522273668,0.77695064,28271.0,28270.0,1.29569223]
[1680522274822,0.77695064,28271.0,28270.0,1.12642429]
[1680522275271,0.77695064,28271.0,28270.0,1.29569223]
[1680522275933,0.77695064,28271.0,28270.0,1.12642429]
[1680522277302,0.77695064,28271.0,28270.0,1.29569223]
[1680522277750,0.77695064,28271.0,28270.0,1.12642429]
[1680522277967,0.77695064,28271.0,28270.0,1.29569223]
[1680522279640,0.77695064,28271.0,28270.0,1.16873723]
[1680522279855,0.77695064,28271.0,28270.0,1.29571765]
[1680522280316,0.77695064,28271.0,28270.0,1.16873723]
[1680522283345,0.77695064,28271.0,28270.0,1.16847287]
[1680522283916,0.77695064,28271.0,28270.0,1.16853287]
[1680522284191,0.77695064,28271.0,28270.0,1.16847287]
[1680522286990,0.77695064,28271.0,28270.0,1.38026991]
[1680522287187,0.77695064,28271.0,28270.0,1.16865287]
[1680522287450,0.77695064,28271.0,28270.0,1.38008991]
[1680522289905,0.77695064,28271.0,28270.0,1.21082197]
[1680522291811,0.77695064,28271.0,28270.0,1.21076148]
[1680522294187,0.77695064,28271.0,28270.0,0.99914444]
[1680522295344,0.77695064,28271.0,28270.0,1.37094444]
[1680522295587,0.77695064,28271.0,28270.0,1.58283121]
[1680522295816,0.77695064,28271.0,28270.0,1.37094444]
[1680522296673,0.77695064,28271.0,28270.0,1.48138444]
[1680522296916,0.77695064,28271.0,28270.0,1.49006444]
[1680522297776,0.75962508,28271.0,28270.0,1.49006444]
[1680522298459,0.75962508,28271.0,28270.0,1.48988444]
[1680522302074,0.75962508,28271.0,28270.0,1.41478444]
[1680522312091,0.75962508,28271.0,28270.0,1.48928444]
[1680522313032,0.75962508,28271.0,28270.0,1.48946444]
[1680522313243,0.75962508,28271.0,28270.0,1.48928444]
[1680522313375,0.75962508,28271.0,28270.0,1.47129244]
[1680522313801,0.77608833,28271.0,28270.0,1.47129244]
[1680522315300,0.77608833,28271.0,28270.0,1.48953744]
[1680522315516,0.77608833,28271.0,28270.0,1.48962944]
[1680522315717,0.77608833,28271.0,28270.0,1.72533066]
[1680522315937,0.77608833,28271.0,28270.0,1.47129244]
[1680522316142,0.77608833,28271.0,28270.0,1.48855944]
[1680522316576,0.77602822,28271.0,28270.0,1.48855944]
[1680522316790,0.77584822,28271.0,28270.0,1.74277766]
[1680522317681,0.77602822,28271.0,28270.0,1.48844179]
[1680522317897,0.77602822,28271.0,28270.0,1.47117479]
[1680522318105,0.77602822,28271.0,28270.0,1.74365101]
[1680522318997,0.77602822,28271.0,28270.0,1.47117479]
[1680522319424,0.77602822,28271.0,28270.0,1.48859279]
[1680522319618,0.77602822,28271.0,28270.0,1.47117479]
[1680522319838,0.77602822,28271.0,28270.0,1.74314301]
[1680522320053,0.77602822,28271.0,28270.0,1.47117479]
[1680522320269,0.77602822,28271.0,28270.0,1.74305201]
[1680522320481,0.77602822,28271.0,28270.0,1.47117479]
[1680522321344,0.77602822,28271.0,28270.0,1.66939201]
[1680522322037,0.77602822,28271.0,28270.0,1.41535379]
[1680522322268,0.77602822,28271.0,28270.0,1.65071301]
[1680522322443,0.77602822,28271.0,28270.0,1.66823301]
[1680522322673,0.77602822,28271.0,28270.0,1.41419479]
[1680522322871,0.77602822,28271.0,28270.0,1.39667479]
[1680522323081,0.77602822,28271.0,28270.0,1.66885801]
[1680522323517,0.77602822,28271.0,28270.0,1.39667479]
[1680522323922,0.76704823,28271.0,28270.0,1.39685479]
[1680522324551,0.76704823,28271.0,28270.0,1.41365479]
[1680522324800,0.76704823,28271.0,28270.0,1.39685479]
[1680522325452,0.76704823,28271.0,28270.0,1.41440579]
[1680522325678,0.76704823,28271.0,28270.0,1.39685479]
[1680522326265,0.76704823,28271.0,28270.0,1.41433279]
[1680522327075,0.76704823,28271.0,28270.0,1.39685479]
[1680522327447,0.76704823,28271.0,28270.0,1.41385279]
[1680522329276,0.76704823,28271.0,28270.0,1.66789101]
[1680522329692,0.76704823,28271.0,28270.0,1.41385279]
[1680522329896,0.76704823,28271.0,28270.0,1.66789101]
[1680522330798,0.76704823,28271.0,28270.0,1.41385279]
[1680522331414,0.76704823,28271.0,28270.0,1.40535279]
[1680522331692,0.76704823,28271.0,28270.0,1.65939101]
[1680522331861,0.77285043,28271.0,28270.0,1.65939101]
[1680522333736,0.77285043,28271.0,28270.0,1.45939101]
[1680522334074,0.77285043,28271.0,28270.0,1.20535279]
[1680522335160,0.77285043,28271.0,28270.0,1.18835479]
[1680522335807,0.77285043,28271.0,28270.0,1.20643479]
[1680522337002,0.77285043,28271.0,28270.0,1.18835479]
[1680522337203,0.77303043,28271.0,28270.0,1.18817479]
[1680522338832,0.77303043,28271.0,28270.0,1.18835479]
[1680522339716,0.77303043,28271.0,28270.0,1.18817479]
[1680522339955,0.77303043,28271.0,28270.0,1.20656779]
[1680522340671,0.77303043,28271.0,28270.0,1.18817479]
[1680522341328,0.77303043,28271.0,28270.0,0.81637479]
[1680522342192,0.77303043,28271.0,28270.0,0.83432579]
[1680522342649,0.77103043,28271.0,28270.0,0.81832579]
[1680522342839,0.77103043,28271.0,28270.0,0.83332579]
[1680522343100,0.77303043,28271.0,28270.0,0.83332579]
[1680522344411,0.77303043,28271.0,28270.0,0.83313479]
[1680522345023,0.77303043,28271.0,28270.0,0.83214179]
[1680522345652,0.77277952,28271.0,28270.0,0.83232179]
[1680522345887,0.77277952,28271.0,28270.0,0.81555479]
[1680522346016,0.77277952,28271.0,28270.0,0.83314679]
[1680522347774,0.77277952,28271.0,28270.0,0.81555479]
[1680522348209,0.77277952,28271.0,28270.0,0.83338579]
[1680522353116,0.77277952,28271.0,28270.0,1.45922401]
[1680522353810,0.75520552,28271.0,28270.0,1.46772401]
[1680522354030,0.75520552,28271.0,28270.0,1.36368579]
[1680522354239,0.75520552,28271.0,28270.0,1.43878579]
[1680522354240,0.74640552,28271.0,28270.0,1.43878579]
[1680522354931,0.72414007,28271.0,28270.0,1.43878579]
[1680522355179,0.72214007,28271.0,28270.0,1.42378579]
[1680522355398,0.72214007,28271.0,28270.0,1.45178579]
[1680522356501,0.72214007,28271.0,28270.0,1.42378579]
[1680522356936,0.72214007,28271.0,28270.0,1.45178579]
[1680522360150,0.71389642,28271.0,28270.0,1.45178579]
[1680522360886,0.71389642,28271.0,28270.0,1.66438579]
[1680522365303,0.71389642,28271.0,28270.0,1.84124579]
[1680522368013,0.71389642,28271.0,28270.0,1.76000423]
[1680522369760,0.71389642,28271.0,28270.0,1.76850423]
[1680522370037,0.71389642,28271.0,28270.0,1.87527437]
[1680522370500,0.71389642,28271.0,28270.0,1.66267437]
[1680522370945,0.71407642,28271.0,28270.0,1.66249437]
[1680522372954,0.71407642,28271.0,28270.0,1.40837593]
[1680522374404,0.71407642,28271.0,28270.0,1.66249437]
[1680522374828,0.71407642,28271.0,28270.0,1.40837593]
[1680522375466,0.71407642,28271.0,28270.0,1.40855593]
[1680522375888,0.71407642,28271.0,28270.0,1.40837593]
[1680522381578,0.71407642,28271.0,28270.0,1.58739437]
[1680522381690,0.71407642,28271.0,28270.0,1.31327593]
[1680522381890,0.71407642,28271.0,28270.0,1.33096193]
[1680522382761,0.71407642,28271.0,28270.0,1.58537116]
[1680522383402,0.71407642,28271.0,28270.0,1.33125272]
[1680522385087,0.71407642,28271.0,28270.0,1.58537116]
[1680522385513,0.71407642,28271.0,28270.0,1.33125272]
[1680522386339,0.71407642,28271.0,28270.0,1.58537116]
[1680522386546,0.71407642,28271.0,28270.0,1.32275272]
[1680522386757,0.71407642,28271.0,28270.0,1.30492172]
[1680522387191,0.71407642,28271.0,28270.0,1.32252272]
[1680522391967,0.71407642,28271.0,28270.0,1.51677568]
[1680522392184,0.71407642,28271.0,28270.0,1.30492172]
[1680522392396,0.71407642,28271.0,28270.0,0.93312172]
[1680522392823,0.7370656,28271.0,28270.0,0.93312172]
[1680522393277,0.7370656,28271.0,28270.0,0.90512172]
[1680522393716,0.7370656,28271.0,28270.0,0.79835158]
[1680522393959,0.7370656,28271.0,28270.0,0.82635158]
[1680522394391,0.7370656,28271.0,28270.0,0.84363058]
[1680522394612,0.7370656,28271.0,28270.0,0.84393858]
[1680522395972,0.7370656,28271.0,28270.0,1.05581533]
[1680522396212,0.7370656,28271.0,28270.0,0.60786342]
[1680522396423,0.7370656,28271.0,28270.0,0.56548863]
[1680522396650,0.7780946,28271.0,28270.0,0.43835535]
[1680522396870,0.7780946,28271.0,28270.0,0.56548863]
[1680522397066,0.7780946,28271.0,28270.0,0.43835535]
[1680522397278,0.7780946,28271.0,28270.0,0.41035535]
[1680522397497,0.7784106,28271.0,28270.0,0.3547809]
[1680522397728,0.7784106,28271.0,28270.0,0.35466607]
[1680522398392,0.7784106,28271.0,28270.0,0.32666607]
[1680522398608,0.7784106,28271.0,28270.0,0.34866607]
[1680522399089,0.7370656,28271.0,28270.0,0.34866607]
[1680522399301,0.7793846,28271.0,28270.0,0.34866607]
[1680522401962,0.8544846,28271.0,28270.0,0.34866607]
[1680522403705,0.8121656,28271.0,28270.0,0.34866607]
[1680522404176,0.7370656,28271.0,28270.0,0.70364104]
[1680522404410,0.7370656,28271.0,28270.0,0.72130004]
[1680522404630,0.7370656,28271.0,28270.0,0.70364104]
[1680522404849,0.7370656,28271.0,28270.0,0.72134004]
[1680522409046,0.7370656,28271.0,28270.0,0.70364104]
[1680522409653,0.7370656,28271.0,28270.0,0.72198004]
[1680522411116,0.7370656,28271.0,28270.0,0.70364104]
[1680522419588,0.7370656,28271.0,28270.0,0.34866607]
[1680522419820,0.8530886,28271.0,28270.0,0.34866607]
[1680522420037,0.85282265,28271.0,28270.0,0.0489609]
[1680522420263,0.81179965,28271.0,28270.0,0.3487809]
[1680522420453,0.81179965,28271.0,28270.0,0.3489609]
[1680522420652,0.85123465,28271.0,28270.0,0.3489609]
[1680522421091,0.85123465,28271.0,28270.0,0.3269609]
[1680522421305,0.85223465,28271.0,28270.0,0.0359609]
[1680522421529,0.85223465,28271.0,28270.0,0.0357809]
[1680522421750,1.12751465,28271.0,28270.0,0.02697679]
[1680522421989,1.78985795,28271.0,28270.0,0.00929079]
[1680522422215,1.63248962,28271.0,28270.0,0.00929079]
[1680522422684,1.63148962,28271.0,28270.0,0.00029079]
[1680522422906,1.48942962,28271.0,28269.0,0.017686]
[1680522423131,0.190345,28270.0,28269.0,0.017686]
[1680522423816,0.340345,28270.0,28269.0,0.017686]
[1680522424053,0.21672686,28270.0,28269.0,0.01604781]
[1680522424265,0.21672686,28270.0,28269.0,0.01504781]
[1680522424522,0.22672686,28270.0,28269.0,0.01604781]
[1680522424945,0.22672686,28270.0,28269.0,0.018686]
[1680522426039,0.22672686,28270.0,28269.0,0.01610697]
[1680522426852,0.22672686,28270.0,28269.0,0.01355373]
[1680522427871,0.22672686,28270.0,28269.0,0.017686]
[1680522428908,0.22672686,28270.0,28269.0,0.01518357]
[1680522429128,0.22672686,28270.0,28266.0,0.035377]
[1680522429129,0.2,28267.0,28266.0,0.035377]
[1680522429352,0.315525,28267.0,28266.0,0.053066]
[1680522429777,0.390225,28267.0,28266.0,0.053066]
[1680522429990,0.41497053,28267.0,28266.0,0.053066]
[1680522430411,0.41497053,28267.0,28266.0,0.055066]
[1680522430412,0.29984553,28267.0,28266.0,0.055066]
[1680522431661,0.33933853,28267.0,28266.0,0.055066]
[1680522432090,0.29984553,28267.0,28266.0,0.055066]
[1680522432930,0.29984553,28267.0,28266.0,0.050066]
[1680522433152,0.33855953,28267.0,28266.0,0.050066]
[1680522441639,0.26345953,28267.0,28266.0,0.050066]
[1680522442042,0.33845953,28267.0,28266.0,0.050066]
[1680522442959,0.22474553,28267.0,28266.0,0.050066]
[1680522443551,0.22474553,28267.0,28266.0,0.048066]
[1680522443773,0.22474553,28267.0,28266.0,0.050066]
[1680522443984,0.22474553,28267.0,28266.0,0.048066]
[1680522444199,0.22474553,28267.0,28266.0,0.050066]
[1680522446206,0.22474553,28267.0,28266.0,0.04993849]
[1680522446881,0.22474553,28267.0,28266.0,0.05036422]
[1680522449834,0.2,28267.0,28266.0,0.05036422]
[1680522452568,0.2,28267.0,28266.0,0.04993849]
[1680522453667,0.240294,28267.0,28266.0,0.04993849]
[1680522453873,0.040294,28267.0,28266.0,0.04993849]
[1680522453988,0.040714,28268.0,28266.0,0.04993849]
[1680522454189,0.039898,28269.0,28266.0,0.04993849]
[1680522455024,0.0745,28267.0,28266.0,0.04993849]
[1680522455255,0.115361,28267.0,28266.0,0.04993849]
[1680522455455,0.115361,28267.0,28266.0,0.04793849]
[1680522455664,0.115361,28267.0,28266.0,0.13383695]
[1680522455868,0.115361,28267.0,28266.0,0.13220075]
[1680522456070,0.126361,28267.0,28266.0,0.13320075]
[1680522456913,0.115361,28267.0,28266.0,0.13220075]
[1680522457559,0.126361,28267.0,28266.0,0.13420075]
[1680522458182,0.61134757,28267.0,28266.0,0.08626226]
[1680522458388,0.61134757,28267.0,28266.0,0.0023638]
[1680522458559,0.61152757,28267.0,28266.0,0.0023638]
[1680522458783,0.61134757,28267.0,28266.0,0.0023638]
[1680522459009,0.55591597,28267.0,28266.0,0.0023638]
[1680522459218,0.54491597,28267.0,28266.0,0.00078953]
[1680522459432,0.77091597,28267.0,28266.0,0.00178953]
[1680522459864,0.92091597,28267.0,28266.0,0.00142573]
[1680522460072,1.10836902,28267.0,28266.0,0.00142573]
[1680522461165,0.95836902,28267.0,28266.0,0.00142573]
[1680522461337,0.93236902,28267.0,28266.0,0.00042573]
[1680522461576,0.95836902,28267.0,28266.0,0.00142573]
[1680522461791,0.95836902,28267.0,28266.0,0.00177217]
[1680522462825,0.95836902,28267.0,28266.0,0.00142573]
[1680522465915,0.95836902,28267.0,28266.0,0.001]
[1680522466304,1.33016902,28267.0,28266.0,0.001]
[1680522466527,1.32987956,28267.0,28266.0,0.001]
[1680522466757,1.47987956,28267.0,28266.0,0.001]
[1680522469860,1.32987956,28267.0,28266.0,0.001]
[1680522471088,0.77062651,28267.0,28266.0,0.001]
[1680522471349,0.77062651,28267.0,28266.0,0.018689]
[1680522471350,0.69623597,28267.0,28266.0,0.018689]
[1680522472243,0.69623597,28267.0,28266.0,0.01911473]
[1680522473087,0.69623597,28267.0,28266.0,0.00142573]
[1680522473981,0.69623597,28267.0,28266.0,0.00131534]
[1680522478814,0.69623597,28267.0,28266.0,0.00088961]
[1680522479032,0.77333757,28267.0,28266.0,0.00088961]
[1680522479258,0.69623597,28267.0,28266.0,0.00088961]
[1680522480462,0.49623597,28267.0,28266.0,0.00088961]
[1680522481946,0.57133597,28267.0,28266.0,0.00088961]
[1680522484098,0.49623597,28267.0,28266.0,0.00088961]
[1680522484706,0.59051757,28267.0,28266.0,0.00088961]
[1680522484927,0.49623597,28267.0,28266.0,0.00088961]
[1680522485385,0.49581024,28267.0,28266.0,0.00088961]
[1680522486687,0.49581024,28267.0,28266.0,0.01857861]
[1680522486911,0.42141024,28267.0,28266.0,0.01857861]
[1680522487796,0.42141024,28267.0,28266.0,0.01891989]
[1680522489784,0.38097497,28267.0,28266.0,0.01891989]
[1680522490009,0.026,28267.0,28266.0,0.01891989]
[1680522491117,0.78821047,28271.0,28266.0,0.01803028]
[1680522491328,0.003,28267.0,28266.0,0.16000515]
[1680522491525,0.003,28267.0,28266.0,0.01821028]
[1680522494013,0.35497497,28270.0,28266.0,0.01821028]
[1680522494244,0.003,28267.0,28266.0,0.01821028]
[1680522494461,0.35497497,28270.0,28266.0,0.01821028]
[1680522494671,0.009,28267.0,28266.0,0.01921028]
[1680522501336,0.009,28267.0,28266.0,0.01915028]
[1680522501584,0.009,28267.0,28266.0,0.01921028]
[1680522501813,0.40547497,28267.0,28266.0,0.00152128]
[1680522502039,0.40547497,28267.0,28266.0,0.00134128]
[1680522502040,0.85227497,28267.0,28266.0,0.00134128]
[1680522502278,1.02915497,28267.0,28266.0,0.00134128]
[1680522502953,1.02015497,28267.0,28264.0,0.0217]
[1680522503203,0.0745,28265.0,28264.0,0.0217]
[1680522503396,0.47006397,28265.0,28264.0,0.0217]
[1680522504298,0.49706397,28265.0,28264.0,0.0217]
[1680522504769,0.86886397,28265.0,28264.0,0.0217]
[1680522505218,1.00345637,28265.0,28264.0,0.0217]
[1680522505725,0.86886397,28265.0,28264.0,0.0217]
[1680522506395,0.87736397,28265.0,28264.0,0.0217]
[1680522509320,0.87736397,28265.0,28264.0,0.02101339]
[1680522510413,0.85036397,28265.0,28264.0,0.02101339]
[1680522510901,0.87736397,28265.0,28264.0,0.02101339]
[1680522511120,1.02969703,28265.0,28264.0,0.02101339]
[1680522518581,1.16456397,28265.0,28264.0,0.02101339]
[1680522518809,1.31456397,28265.0,28264.0,0.02101339]
[1680522519009,1.39892723,28265.0,28264.0,0.02101339]
[1680522519603,1.24892723,28265.0,28264.0,0.02101339]
[1680522519803,1.22192723,28265.0,28264.0,0.02101339]
[1680522520137,1.64478986,28265.0,28264.0,0.02101339]
[1680522520367,1.63069886,28265.0,28264.0,0.02101339]
[1680522520584,1.31494397,28265.0,28264.0,0.02101339]
[1680522520815,1.41494397,28265.0,28264.0,0.02101339]
[1680522521035,1.28794397,28265.0,28264.0,0.02101339]
[1680522521253,1.39930723,28265.0,28264.0,0.02101339]
[1680522521477,1.28794397,28265.0,28264.0,0.02101339]
[1680522521697,1.31494397,28265.0,28264.0,0.02101339]
[1680522522137,1.16474397,28265.0,28264.0,0.02101339]
[1680522528164,1.31474397,28265.0,28264.0,0.02101339]
[1680522528365,1.16474397,28265.0,28264.0,0.02101339]
[1680522530245,2.4381943,28265.0,28264.0,0.02101339]
[1680522532269,2.3635943,28265.0,28264.0,0.02101339]
[1680522533527,1.09014397,28265.0,28264.0,0.02101339]
[1680522534622,2.54047247,28265.0,28264.0,0.02101339]
[1680522540060,2.37771347,28265.0,28264.0,0.02101339]
[1680522540266,2.95223154,28265.0,28264.0,0.02101339]
[1680522540766,2.85371728,28265.0,28264.0,0.02101339]
[1680522542169,2.93808054,28265.0,28264.0,0.02101339]
[1680522543262,0.2,28261.0,28253.0,0.0217]
[1680522543500,0.4562677,28256.0,28254.0,0.00012]
[1680522543732,2.12559617,28255.0,28253.0,0.0217]
[1680522543960,1.6878395,28254.0,28253.0,0.0217]
[1680522544230,2.04347775,28254.0,28253.0,0.0217]
[1680522544690,0.76957597,28254.0,28253.0,0.0217]